Cogmind - Beta 11.1 @@@ ROGUE MODE // 2022.05.25 @ 14:43:06 Player: Exp. Geonium Core Result: Destroyed by G-73 Enforcer with Phase Gun Performance ------------- Evolutions (8) 4000 Regions Visited (25) 5000 Robots Destroyed (241) 1205 Value Destroyed (13600) 13600 Prototype IDs (42) 840 Alien Tech Used (0) 0 Bonus (6495) 6495 TOTAL SCORE: 31140 Bonus ------- High Alert Combat Kills 1333 Follower Combat Kills 3449 Entered Garrisons 1800 Used RIF Installer 4000 Aligned with FarCom 300 Friendly Fire -4387 Cogmind --------- Core Integrity 0/1450 Matter 0/300 Energy 73/100 System Corruption 7% Temperature Cool (4) Movement Walking (120) Location -2/Garrison Parts ------- > --- POWER (2) -------- (None) > --- PROPULSION (13) -- Myomer Leg Myomer Leg > --- UTILITY (4) ------ Relay Coupler [Grunt] (27) > --- WEAPON (4) ------- Heavy Laser Advanced Remote Datajack > --- INVENTORY (5) ---- Relay Coupler [Sentry] (25) Relay Coupler [Hunter] (19) Gamma Bomb Array Peak State ------------ > --- POWER ------------ Vortex Chain Reactor > --- PROPULSION ------- Improved Heavy Treads Armored Heavy Treads Centrium Heavy Treads Flexi-carbon Leg Flexi-carbon Leg Flexi-carbon Leg Myomer Leg Myomer Leg Biometal Leg > --- UTILITY ---------- Advanced Coolant Injector Huge Storage Unit Relay Coupler [NC] Relay Coupler [Sentry] > --- WEAPON ----------- Cooled Phase Gun Long-range Phase Cannon Power Sword > --- INVENTORY -------- Vortex Chain Reactor Armored Medium Treads Advanced Cooling System Spectral Analyzer Relay Coupler [Grunt] Relay Coupler [Grunt] Relay Coupler [Duelist] Relay Coupler [Sentry] Relay Coupler [Sentry] Relay Coupler [Demolisher] Relay Coupler [Demolisher] Relay Coupler [Behemoth] Cooled Phase Gun Railgun Heavy Gauss Cannon Gamma Bomb Array Fusion Bomb Launcher Hellfire Missile Launcher Improved Datajack Advanced Datajack Advanced Remote Datajack Advanced Remote Datajack Advanced Remote Datajack Longsword +1 [Rating: 155] Favorites ----------- Power Antimatter Reactor Engine Light Deuterium Engine Power Core Micro Fission Core Reactor Antimatter Reactor Propulsion Heavy Treads Treads Heavy Treads Leg Flexi-carbon Leg Wheel Armored Wheel Flight Unit Cesium-ion Thruster Utility Huge Storage Unit Device Cooling System Storage Huge Storage Unit Processor Improved Melee Analysis Suite Hackware Relay Coupler [Grunt] Protection Light Armor Plating Weapon Longsword +1 Energy Gun Advanced Beam Rifle Energy Cannon Advanced Plasma Cannon Ballistic Gun Assault Rifle Ballistic Cannon Hardcell Cannon Launcher Grenade Launcher Special Weapon Advanced Remote Datajack Slashing Weapon Longsword +1 Special Melee Weapon Improved Datajack Build | -11 -10 -10 -10 -9 -8 -8 -8 -7 -7 -7 -7 -6 -6 -6 -6 -5 -5 -4 -4 -3 -3 -3 -3 -2 -2 ------- Run | Scr Mat Min Exi Min Mat Gar Mat Fac Gar Fac Gar Fac Was Fac Gar Fac Gar Fac Gar Res Gar Res Gar Res Gar Slots Evolved 16 | . . . . . 4 . . 2 . . . 2 . . . 2 . 2 . 2 . . . 2 . Power 1 | . . . . . . . . . . . . . . . . . . 1 . . . . . . . Propulsion 11 | . . . . . 2 . . 2 . . . 2 . . . 2 . . . 2 . . . 1 . Utility 2 | . . . . . 2 . . . . . . . . . . . . . . . . . . . . Weapon 2 | . . . . . . . . . . . . . . . . . . 1 . . . . . 1 . Parts Attached 330 | . 7 10 1 3 10 2 27 6 17 10 15 4 5 9 11 15 14 8 19 11 24 42 31 24 5 Power 17 | . 1 1 . . . . 2 . . 1 . . 1 2 . . . 2 . 2 1 2 1 1 . Engine 4 | . 1 1 . . . . 1 . . 1 . . . . . . . . . . . . . . . Core 3 | . . . . . . . 1 . . . . . . . . . . 2 . . . . . . . Reactor 10 | . . . . . . . . . . . . . 1 2 . . . . . 2 1 2 1 1 . Propulsion 115 | . 2 2 1 1 2 2 15 4 7 2 3 2 4 . . 5 3 2 8 2 14 15 8 9 2 Treads 53 | . 2 . . . 1 1 5 3 6 . . 1 4 . . 3 3 1 4 . 2 6 8 3 . Leg 37 | . . 1 . . 1 1 1 . . . 2 1 . . . 2 . . . 1 12 9 . 4 2 Wheel 23 | . . 1 1 1 . . 9 1 1 2 1 . . . . . . 1 4 1 . . . . . Hover . | . . . . . . . . . . . . . . . . . . . . . . . . . . Flight 2 | . . . . . . . . . . . . . . . . . . . . . . . . 2 . Utility 95 | . 1 2 . 2 2 . 5 2 6 4 5 1 . 2 3 5 4 2 7 7 5 11 11 7 1 Device 19 | . 1 2 . . . . 1 . . . . . . 1 . . 1 1 3 3 . 3 3 . . Storage 2 | . . . . 1 . . 1 . . . . . . . . . . . . . . . . . . Processor 8 | . . . . . 2 . 2 1 . . . . . . . . . . . 1 . 1 1 . . Hackware 56 | . . . . . . . 1 1 2 3 3 1 . 1 3 3 3 1 4 3 5 7 7 7 1 Protection 10 | . . . . 1 . . . . 4 1 2 . . . . 2 . . . . . . . . . Artifact . | . . . . . . . . . . . . . . . . . . . . . . . . . . Weapon 103 | . 3 5 . . 6 . 5 . 4 3 7 1 . 5 8 5 7 2 4 . 4 14 11 7 2 Energy Gun 17 | . 1 . . . . . 2 . 1 . . . . 2 2 . . . . . 1 3 4 . 1 Energy Cannon 9 | . . . . . . . . . . . . . . 2 . 1 2 . 1 . . 1 2 . . Ballistic Gun 8 | . 1 2 . . 3 . 1 . 1 . . . . . . . . . . . . . . . . Ballistic Cannon 8 | . . . . . . . . . . 1 1 . . . . . . . 1 . 1 2 1 1 . Launcher 21 | . . 1 . . 2 . . . . . 2 . . . 1 1 . 1 . . . 6 3 4 . Special Weapon 10 | . 1 2 . . . . . . . . . . . . . . . . 1 . 1 2 1 1 1 Impact Weapon . | . . . . . . . . . . . . . . . . . . . . . . . . . . Slashing Weapon 19 | . . . . . 1 . 2 . 1 1 3 . . . 3 1 3 1 1 . 1 . . 1 . Piercing Weapon . | . . . . . . . . . . . . . . . . . . . . . . . . . . Special Melee Weapon 11 | . . . . . . . . . 1 1 1 1 . 1 2 2 2 . . . . . . . . Unidentified Prototypes 13 | . . 1 . . . . 1 . . 1 . . . 2 . 1 . . . 1 . 5 1 . . Parts Lost 90 | . 2 8 . . 6 1 3 . 12 . 3 . . . 1 2 2 1 5 1 5 11 2 25 . Power 9 | . 1 2 . . . . 1 . 1 . . . . . . . . . . . . 2 . 2 . Propulsion 54 | . . 2 . . 3 1 2 . 8 . 3 . . . . 1 1 1 3 1 4 7 1 16 . Utility 6 | . . . . . 1 . . . 2 . . . . . . 1 . . . . . 1 . 1 . Weapon 21 | . 1 4 . . 2 . . . 1 . . . . . 1 . 1 . 2 . 1 1 1 6 . Highest Loss Streak 15 | . 1 3 . . 5 1 1 . 8 . 2 . . . 1 1 2 1 2 1 2 11 1 15 . To Critical Strikes 2 | . . . . . . . . . . . . . . . . 1 . . . . . 1 . . . Average Slot Usage (%) 78 | . 84 81 71 80 67 49 92 100 87 87 84 93 75 72 70 69 73 69 76 83 89 87 72 55 6 Engine 1 | . 7 9 . . . . 6 . . 5 7 6 . . . . . . . . . . . . . Core 1 | . . . . . . . 1 7 4 . . . . . . . . . 10 1 . . . . . Reactor 3 | . . . . . . . . . . . . . 5 6 6 5 5 4 . 7 9 8 4 2 . Treads 21 | . 26 12 . . 2 . 10 23 26 23 1 6 22 26 26 29 32 30 29 13 5 12 33 26 . Leg 6 | . 1 5 14 4 6 9 1 . . . 11 20 2 . . . 1 . . 3 30 33 4 . . Wheel 6 | . . 8 14 23 15 3 22 23 13 14 21 20 3 . . . . . . 23 10 . . . . Device 2 | . 11 8 . . . . 1 . . . . . . 5 6 5 4 5 5 1 . . 1 . . Storage 6 | . 14 14 14 14 7 . 8 7 7 7 7 6 6 6 6 5 5 5 5 4 4 4 4 2 . Processor 3 | . . . . . 7 18 16 10 15 7 7 6 6 . . . . . . . . . . . . Hackware 8 | . . . . . . . 6 11 . 10 7 12 13 13 12 8 9 8 9 11 13 11 10 10 1 Energy Gun 1 | . 9 7 . . . . 6 7 3 . . . . 3 4 1 . . . . . . 1 . . Ballistic Gun 1 | . 11 6 14 14 9 18 3 . 2 . . . . . . . . . . . . . . . . Ballistic Cannon 1 | . . . . . . . . . . 1 4 . . . . . . . 3 4 3 3 . . . Special Weapon 1 | . . 5 . . . . . . . . . . . . . . . . 1 4 4 3 3 2 4 Slashing Weapon 4 | . . . . . 1 . 8 7 6 6 3 6 6 2 2 2 . 1 4 4 4 4 4 2 . Special Melee Weapon 1 | . . . . . . . . . . 5 3 5 6 4 2 2 4 5 2 . . . . . . Naked Turns 11 | . . . . . . . . . . . . . . . . . . . . . . . . 11 . Heaviest Build 149 | 11 12 13 10 90 89 3 92 90 97 101 98 95 100 111 106 111 109 116 109 125 128 136 137 149 9 Greatest Support 414 | 20 40 40 10 20 20 10 92 32 109 86 50 50 280 280 280 350 326 326 326 60 255 255 386 414 50 Greatest Overweight (x) 8 | . . 1 . 4 8 . 5 2 4 2 2 1 1 . . . . . 2 2 2 1 . . 1 Average Overweight (x) . | . . . . 2 2 . 1 2 1 1 1 1 . . . . . . . 1 . . . . . Largest Inventory Capacity 25 | . 8 8 8 25 25 5 25 25 25 25 25 25 25 25 25 25 25 25 25 25 25 25 25 25 5 Average Capacity 23 | . 8 8 8 20 22 5 22 25 25 25 25 25 25 25 25 25 25 25 25 25 25 25 25 19 5 Most Carried 25 | . 8 8 8 8 7 5 25 22 23 17 24 24 25 25 25 25 25 25 25 25 25 25 25 24 4 Average Carried 19 | . 6 7 7 7 5 3 18 20 18 14 14 23 24 24 24 23 21 24 21 24 23 23 21 14 3 Final Capacity 25 | 8 8 8 8 25 5 5 25 25 25 25 25 25 25 25 25 25 25 25 25 25 25 25 25 25 5 Final Carried 25 | 6 8 8 8 8 4 5 23 21 17 16 24 24 25 25 25 24 23 25 23 24 24 25 25 24 3 Class Distribution -------------------- 44% | Botlord-Mutant 27% | Bothacker-Mutant 19% | Mutant 4% | Scavenger-Mutant 3% | Commander-Mutant Dominant Class ---------------- Mutant | -10/Materials Mutant | -10/Mines Mutant | -10/Exiles Mutant | -9/Mines Mutant | -8/Materials Mutant | -8/Garrison Mutant | -8/Materials Hacker-Mutant | -7/Factory Scavenger-Mutant | -7/Garrison Bothacker-Mutant | -7/Factory Commander-Mutant | -7/Garrison Bothacker-Mutant | -6/Factory Bothacker-Mutant | -6/Waste Bothacker-Mutant | -6/Factory Bothacker-Mutant | -6/Garrison Botlord-Mutant | -5/Factory Bothacker-Mutant | -5/Garrison Botlord-Mutant | -4/Factory Botlord-Mutant | -4/Garrison Botlord-Mutant | -3/Research Botlord-Mutant | -3/Garrison Botlord-Mutant | -3/Research Botlord-Mutant | -3/Garrison Botlord-Mutant | -2/Research Mutant | -2/Garrison Resources | -11 -10 -10 -10 -9 -8 -8 -8 -7 -7 -7 -7 -6 -6 -6 -6 -5 -5 -4 -4 -3 -3 -3 -3 -2 -2 ----------- Run | Scr Mat Min Exi Min Mat Gar Mat Fac Gar Fac Gar Fac Was Fac Gar Fac Gar Fac Gar Res Gar Res Gar Res Gar Matter Collected 6606 | 198 136 196 . 82 . 59 497 . 202 100 261 12 78 19 204 147 209 85 546 255 540 1172 757 851 . Remotely . | . . . . . . . . . . . . . . . . . . . . . . . . . . Salvage Created 11737 | . 437 307 . 48 180 59 939 . 815 . 453 12 1646 19 607 593 743 110 826 207 797 1120 996 823 . Parts 504 | . 28 21 . 2 12 4 56 . 35 . 31 2 32 . 37 22 28 10 21 9 34 52 37 31 . Haulers Intercepted 3 | . . . . . . . 2 . . . . . . . . . . . . . . 1 . . . Recyclers Shooed 2 | . 1 1 . . . . . . . . . . . . . . . . . . . . . . . Parts Field Recycled . | . . . . . . . . . . . . . . . . . . . . . . . . . . Retrieved Matter . | . . . . . . . . . . . . . . . . . . . . . . . . . . Parts Self-Destructed . | . . . . . . . . . . . . . . . . . . . . . . . . . . Prevented . | . . . . . . . . . . . . . . . . . . . . . . . . . . Kills | -11 -10 -10 -10 -9 -8 -8 -8 -7 -7 -7 -7 -6 -6 -6 -6 -5 -5 -4 -4 -3 -3 -3 -3 -2 -2 ------- Run | Scr Mat Min Exi Min Mat Gar Mat Fac Gar Fac Gar Fac Was Fac Gar Fac Gar Fac Gar Res Gar Res Gar Res Gar Combat Hostiles Destroyed 179 | . 11 10 . 2 3 1 11 . 18 . 12 . 6 . 16 8 16 2 9 2 10 12 13 17 . Melee 62 | . . . . . . . 11 . 17 . . . 6 . 2 . 2 1 3 1 6 1 7 5 . Guns 38 | . 11 10 . . 1 1 . . 1 . . . . . 12 . . . . . . 2 . . . Cannons 34 | . . . . . . . . . . . . . . . . 4 13 1 4 1 4 4 3 . . AOE 37 | . . . . 2 2 . . . . . 12 . . . 2 1 . . . . . 5 1 12 . Classes Destroyed 21 | . 4 2 . . 1 1 3 . . . 1 . 1 . . 2 . 1 2 . . 2 . 1 . Worker 11 | . 2 . . . . . 1 . . . . . . . . . . . . 1 . 7 . . . Builder 12 | . . 1 . . 1 . 3 . . . . 1 . . . 1 . . . . . 4 . 1 . Tunneler 5 | . . 1 . . 1 . . . . . . . . 1 . . . . . . . 1 . 1 . Hauler 4 | . . . . . . . 2 . . . . . . . . . . . . . . 1 1 . . Recycler 6 | . 1 . . . . . 2 . . . . . . . . . . . . . . 2 . 1 . Mechanic 1 | . . . . . . . . . . . . . . . . . . . . . . 1 . . . Operator 3 | . . . . . 1 . 1 . . . . . . . . . . . . . . 1 . . . Watcher 5 | . . . . . . . 3 . . . . . . . 1 . . . . . . . 1 . . Swarmer 53 | . 6 6 . . . . 2 . 6 . 8 . . . 12 . 8 . . . 1 3 . 1 . Cutter 6 | . . . . . . . . . . . 3 . . . . . . . . . . . . 3 . Grunt 79 | . 5 4 . 2 3 . 3 . 13 . 2 . . . 4 5 8 . 6 2 7 1 8 6 . Brawler 2 | . . . . . . . . . . . . . . . . 1 1 . . . . . . . . Duelist 5 | . . . . . . . . . . . . . . . . 2 . . . . 3 . . . . Sentry 10 | . . . . . . 1 4 . . . 2 . . . 1 . . . . . 1 . . 1 . Specialist 6 | . . . . . . . . . . . . . . . . . . . 2 . . 1 1 2 . Hunter 15 | . . . . . . . 2 . . . 2 . . . . . . . . . 1 3 2 5 . Programmer 8 | . . . . . . . . . . . . . . . . . . 2 . 1 . 3 2 . . Heavy 1 | . . . . . . . . . . . . . . . . . . . . . . . . 1 . Behemoth 1 | . . . . . . . . . . . . . . . . . . . 1 . . . . . . Compactor 6 | . . . . . . . . . . . . . 6 . . . . . . . . . . . . Executioner 1 | . . . . . . . . . . . . . . . . . . . . . . 1 . . . Thug 1 | . . . . . 1 . . . . . . . . . . . . . . . . . . . . Best Kill Streak 9 | . 9 3 . 2 4 1 4 . 8 . 5 1 3 1 9 3 4 2 1 1 2 7 4 6 . Combat Bots Only 9 | . 8 3 . 2 3 1 2 . 8 . 5 . 3 . 9 2 4 2 1 1 2 6 4 5 . Max Kills in Single Turn 4 | . 1 1 . 1 2 1 1 . 1 . 4 1 1 1 2 2 1 1 1 1 1 3 1 3 . Gunslinging . | . . . . . . . . . . . . . . . . . . . . . . . . . . Exploded 4 | . . . . 1 1 . . . . . 4 . . . 2 1 . . . . . 2 1 2 . Melee 1 | . . . . . . . 1 . 1 . . . 1 . 1 . 1 1 1 1 1 1 1 1 . Uniques/NPCs Destroyed . | . . . . . . . . . . . . . . . . . . . . . . . . . . Combat | -11 -10 -10 -10 -9 -8 -8 -8 -7 -7 -7 -7 -6 -6 -6 -6 -5 -5 -4 -4 -3 -3 -3 -3 -2 -2 -------- Run | Scr Mat Min Exi Min Mat Gar Mat Fac Gar Fac Gar Fac Was Fac Gar Fac Gar Fac Gar Res Gar Res Gar Res Gar Damage Taken 23329 | . 474 699 . . 564 45 352 . 2162 46 442 . . . 840 1215 1037 422 2378 172 773 3414 1679 6530 85 Core 3127 | . 78 115 . . 130 15 64 . 302 6 81 . . . 71 55 30 62 72 10 40 410 115 1444 27 Absorbed by Shields 1321 | . . . . . . . . . . . 17 . . . 197 . 203 . 779 . . . 120 . 5 Reduced by Siege Mode 58 | . . . . . . . . . . . . . . . . . . . 58 . . . . . . Regen/Repaired (Parts) 1286 | . . . . . . . . . . . . . . . . . . . . . . 276 . 1010 . Core Remaining (%) 69 | 100 . . . 22 . . 62 . . . 44 . . . 91 . 91 . 88 . . . 55 . . Volleys Fired 636 | . 49 78 . 5 27 1 . . 20 . 9 . . . 33 36 54 2 68 25 33 81 49 63 3 Largest 2 | . 2 2 . 1 2 2 . . 1 . 1 . . . 1 1 1 1 1 1 1 1 1 1 1 Hottest 150 | . 60 150 . 30 40 40 . . 61 . 39 . . . 80 98 98 98 90 65 65 80 120 120 10 Shots Fired 681 | . 79 80 . 5 30 2 . . 20 . 9 . . . 33 36 56 3 68 26 34 82 52 63 3 Gun 246 | . 79 77 . 3 14 2 . . 20 . . . . . 31 . . . . . . 5 15 . . Cannon 230 | . . . . . . . . . . . . . . . . 30 56 3 64 6 23 27 8 13 . Launcher 75 | . . . . 2 16 . . . . . 9 . . . 2 6 . . . . . 11 5 24 . Special 130 | . . 3 . . . . . . . . . . . . . . . . 4 20 11 39 24 26 3 Kinetic 202 | . 41 38 . 3 14 2 . . 3 . . . . . . . . . 37 6 23 27 6 2 . Thermal 277 | . 38 42 . . . . . . 17 . . . . . 31 30 56 3 27 . . 5 17 11 . Explosive 63 | . . . . 2 16 . . . . . 9 . . . 2 . . . . . . 9 2 23 . Electromagnetic 12 | . . . . . . . . . . . . . . . . 6 . . . . . 2 3 1 . Robot Hit Streak 20 | . 8 18 . 2 7 2 . . 3 . 1 . . . 6 6 7 2 20 14 17 9 10 9 1 Robot Miss Streak 5 | . 3 5 . 2 2 . . . 4 . . . . . 2 2 3 3 3 2 2 3 3 3 2 Penetration Max . | . . . . . . . . . . . . . . . . . . . . . . . . . . Secondary Targets . | . . . . . . . . . . . . . . . . . . . . . . . . . . Shots Hit Robots 808 | . 57 59 . 2 15 2 36 . 40 11 14 5 93 2 31 35 55 12 81 26 44 79 60 48 1 Core Hits 358 | . 23 18 . 2 20 2 16 . 19 . 18 . 13 . 21 16 21 3 20 3 14 59 26 44 . Critical Kills 6 | . . . . . . . . . . . . . . . 3 2 1 . . . . . . . . Critical Parts Destroyed . | . . . . . . . . . . . . . . . . . . . . . . . . . . Critical Strikes 34 | . . 1 . . 1 . 1 . 3 . . . 1 . 3 2 3 . 6 2 2 3 5 1 . Burn 4 | . . 1 . . . . . . 1 . . . . . . . . . . . . 1 1 . . Meltdown 3 | . . . . . . . . . . . . . . . . 2 1 . . . . . . . . Destroy 3 | . . . . . . . . . . . . . . . 3 . . . . . . . . . . Blast 7 | . . . . . . . . . . . . . . . . . . . 2 . 2 1 2 . . Sever 17 | . . . . . 1 . 1 . 2 . . . 1 . . . 2 . 4 2 . 1 2 1 . Melee Attacks 455 | . . . . . 6 . 39 1 44 13 16 5 105 2 17 15 39 17 37 5 22 24 37 11 . Impact . | . . . . . . . . . . . . . . . . . . . . . . . . . . Slashing 373 | . . . . . 6 . 39 1 42 . 9 1 98 1 13 2 21 11 30 5 22 24 37 11 . Piercing . | . . . . . . . . . . . . . . . . . . . . . . . . . . Sneak Attacks 195 | . . . . . . . 12 . 2 6 7 5 87 1 5 11 2 6 1 3 11 11 21 4 . Combat Hostiles 123 | . . . . . . . 1 . . . . . 87 . 1 . 1 . 1 2 9 1 16 4 . Follow-up Attacks . | . . . . . . . . . . . . . . . . . . . . . . . . . . Damage Inflicted 33677 | . 675 678 . 139 918 22 2329 . 1691 . 1613 96 3952 76 1267 1107 1446 250 2944 467 1854 4221 2849 5083 . Guns 2557 | . 667 674 . 12 109 22 . . 195 . . . . . 476 . . . . . . 170 232 . . Cannons 5713 | . . . . . . . . . . . . . . . . 632 1100 79 1635 165 781 784 279 258 . Explosions 9182 | . . . . 127 675 . . . . . 976 . . . 184 459 . . . . . 1995 486 4280 . Melee 16138 | . . . . . 134 . 2329 . 1493 . 637 96 3952 76 587 . 346 171 1309 302 1073 1272 1852 509 . Ramming 87 | . 8 4 . . . . . . 3 . . . . . 20 16 . . . . . . . 36 . Kinetic 3837 | . 385 304 . 12 109 22 . . 35 . . . . . . . . . 1000 165 781 784 195 45 . Thermal 4433 | . 282 370 . . . . . . 160 . . . . . 476 632 1100 79 635 . . 170 316 213 . Explosive 7824 | . . . . 127 675 . . . . . 976 . . . 184 . . . . . . 1391 253 4218 . Electromagnetic 1358 | . . . . . . . . . . . . . . . . 459 . . . . . 604 233 62 . Impact . | . . . . . . . . . . . . . . . . . . . . . . . . . . Slashing 16138 | . . . . . 134 . 2329 . 1493 . 637 96 3952 76 587 . 346 171 1309 302 1073 1272 1852 509 . Piercing . | . . . . . . . . . . . . . . . . . . . . . . . . . . Highest Corruption 8 | . 3 3 3 3 . . . . . . . . . . . 5 5 8 8 4 4 7 4 7 7 Average Corruption 4 | . 2 3 3 3 . . . . . . . . . . . 4 5 3 8 4 4 4 3 5 7 Corruption Purged 5 | . . . . . . . . . . . . . . . . . . . . . . 5 . . . Corruption Blocked . | . . . . . . . . . . . . . . . . . . . . . . . . . . Effects 234 | . 1 22 2 4 . . . . . . . . . . . 6 27 3 51 10 23 39 41 2 3 Message Errors 62 | . 1 10 . 1 . . . . . . . . . . . 2 7 2 13 3 5 9 6 2 1 Matter Fused 53 | . . 3 . 2 . . . . . . . . . . . . 7 . 11 2 4 10 13 . 1 Heat Flow Errors 23 | . . 1 1 . . . . . . . . . . . . . 3 . 7 2 3 3 3 . . Energy Discharges 37 | . . 1 1 . . . . . . . . . . . . 2 2 . 9 1 5 9 7 . . Parts Rejected 5 | . . 1 . . . . . . . . . . . . . . . . 1 . 1 . 2 . . Data Loss (minor) 21 | . . 3 . 1 . . . . . . . . . . . . 3 . 4 1 3 4 2 . . Data Loss (major) 9 | . . 1 . . . . . . . . . . . . . . 1 . 2 . 1 1 3 . . Misfires 11 | . . . . . . . . . . . . . . . . 1 2 1 . 1 1 2 3 . . Alerts 10 | . . 1 . . . . . . . . . . . . . . 2 . 4 . . . 2 . 1 Weapon Failures 3 | . . 1 . . . . . . . . . . . . . 1 . . . . . 1 . . . Overload Shots 3 | . . . . . . . . . . . . . . . . . . . . . . 3 . . . Overflow Damage 2039 | . . . . . 111 . 591 . 133 . 30 56 . 36 103 . 23 32 128 57 99 255 74 311 . Projectiles 266 | . . . . . . . . . . . . . . . . . 16 . 114 . 78 13 35 10 . Explosions 431 | . . . . . 93 . . . . . 14 . . . 22 . . . . . . 30 . 272 . Melee 1342 | . . . . . 18 . 591 . 133 . 16 56 . 36 81 . 7 32 14 57 21 212 39 29 . Knockbacks 36 | . . . . . . . . . . . . . . . . . . . 12 1 12 10 1 . . Impact . | . . . . . . . . . . . . . . . . . . . . . . . . . . Kinetic 35 | . . . . . . . . . . . . . . . . . . . 12 1 12 9 1 . . Secondary 1 | . . . . . . . . . . . . . . . . . . . . . . 1 . . . Self-Inflicted Damage 538 | . . 1 . . 139 . . . . . 68 . . . 54 20 . . . . . 128 6 122 . Shots 16 | . . . . . 5 . . . . . 1 . . . 2 1 . . . . . 5 1 1 . Rammed 24 | . 4 3 . . . . . . . . . . . . 4 4 . . . . . . . 9 . Targets Rammed 25 | . 4 3 . . . . . . 1 . . . . . 4 4 . . . . . . . 9 . Kicked . | . . . . . . . . . . . . . . . . . . . . . . . . . . Crushed 1 | . . . . . . . . . 1 . . . . . . . . . . . . . . . . Highest Temperature 276 | . 81 194 183 . 9 . . . 84 . . . . . . 42 257 . 252 146 250 225 217 276 . Average Temperature 68 | . 50 74 95 . 4 . . . 36 . . . . . . 21 92 . 81 39 53 53 74 97 . Received Heat Transfer 3255 | . 219 243 . . 288 18 72 . 603 18 53 . . . 72 307 102 . 435 30 21 405 135 198 36 Siege Activations 1 | . . . . . . . . . . . . . . . . . . . 1 . . . . . . Total Turns 31 | . . . . . . . . . . . . . . . . . . . 31 . . . . . . Longest Duration 31 | . . . . . . . . . . . . . . . . . . . 31 . . . . . . Robots Corrupted 3 | . . . . . . . . . . . . . . . . 1 . . . . . . 2 . . Combat Hostiles 3 | . . . . . . . . . . . . . . . . 1 . . . . . . 2 . . Parts Fried 3 | . . . . . . . . . . . . . . . . 1 . . . . . . 2 . . Impact Corruptions . | . . . . . . . . . . . . . . . . . . . . . . . . . . Robots Melted 5 | . . . . . . . . . . . . . . . . 2 1 . 2 . . . . . . Combat Hostiles 5 | . . . . . . . . . . . . . . . . 2 1 . 2 . . . . . . Parts Melted 15 | . . 2 . . . . . . . . . . . . 2 4 2 . 3 . . 1 1 . . Heat Transferred 7608 | . 625 1110 . . . . . . 370 . . . . . 740 950 1597 100 1000 . . 450 481 185 . Parts Sabotaged 3 | . . . . . . . . . . . . . . . . . . . . . . . . 3 . Parts Stolen . | . . . . . . . . . . . . . . . . . . . . . . . . . . Parts Stripped . | . . . . . . . . . . . . . . . . . . . . . . . . . . Power Chain Reactions . | . . . . . . . . . . . . . . . . . . . . . . . . . . Missiles Intercepted . | . . . . . . . . . . . . . . . . . . . . . . . . . . Alert | -11 -10 -10 -10 -9 -8 -8 -8 -7 -7 -7 -7 -6 -6 -6 -6 -5 -5 -4 -4 -3 -3 -3 -3 -2 -2 ------- Run | Scr Mat Min Exi Min Mat Gar Mat Fac Gar Fac Gar Fac Was Fac Gar Fac Gar Fac Gar Res Gar Res Gar Res Gar Peak Influence 1193 | . 267 239 . 79 290 313 279 137 663 387 614 327 144 23 790 579 680 410 658 654 1086 678 1193 915 576 Initial 670 | . . 103 . . 30 188 152 102 95 347 104 322 114 3 16 414 . 357 147 369 412 610 277 670 573 Average 381 | . 160 89 . 62 194 256 179 124 417 273 450 326 32 16 380 358 389 364 375 496 838 385 777 620 573 Maximum Alert Level 4 | . 1 1 . . 1 1 1 . 2 1 2 1 . . 3 2 2 2 2 2 3 2 4 3 2 Low Security (%) 32 | . 52 91 . 100 34 36 62 100 26 30 15 . 100 100 37 21 20 . 10 . . 17 . . . Level 1 22 | . 47 8 . . 65 63 37 . 6 69 22 100 . . 21 12 18 89 42 18 . 37 9 10 . Level 2 32 | . . . . . . . . . 66 . 61 . . . 18 66 60 10 46 81 23 44 28 58 100 Level 3 11 | . . . . . . . . . . . . . . . 21 . . . . . 76 . 53 30 . Level 4 . | . . . . . . . . . . . . . . . . . . . . . . . 8 . . Level 5 . | . . . . . . . . . . . . . . . . . . . . . . . . . . High Security . | . . . . . . . . . . . . . . . . . . . . . . . . . . Max Security . | . . . . . . . . . . . . . . . . . . . . . . . . . . Squads Dispatched 25 | . 1 . . . 5 . 1 . . . . . . . . 1 . 1 . 3 . 1 . 12 . Investigation 2 | . . . . . . . . . . . . . . . . . . . . 1 . . . 1 . Extermination 3 | . . . . . . . . . . . . . . . . . . 1 . . . 1 . 1 . Reinforcement 12 | . 1 . . . 3 . 1 . . . . . . . . . . . . 1 . . . 6 . Assault 4 | . . . . . . . . . . . . . . . . 1 . . . . . . . 3 . Garrison 4 | . . . . . 2 . . . . . . . . . . . . . . 1 . . . 1 . Intercept . | . . . . . . . . . . . . . . . . . . . . . . . . . . Searches Triggered . | . . . . . . . . . . . . . . . . . . . . . . . . . . Construction Impeded 1 | . . . . . 1 . . . . . . . . . . . . . . . . . . . . Haulers Reinforced 2 | . . . . . . . . . . . . . . . . . . . . 1 . . . 1 . Active Scanning Responses . | . . . . . . . . . . . . . . . . . . . . . . . . . . Cargo Convoy Interrupts 1 | . . . . . . . . . . . . . . . . . . . . . . 1 . . . Stealth | -11 -10 -10 -10 -9 -8 -8 -8 -7 -7 -7 -7 -6 -6 -6 -6 -5 -5 -4 -4 -3 -3 -3 -3 -2 -2 --------- Run | Scr Mat Min Exi Min Mat Gar Mat Fac Gar Fac Gar Fac Was Fac Gar Fac Gar Fac Gar Res Gar Res Gar Res Gar Distress Signals 7 | . . . . . . . 1 . . . . . . . . 2 . . . 1 . . . 3 . Communications Jammed 44 | . . . . . . . . . . . . . . . . 10 . 1 . 8 . 13 . 12 . Distress Signals 42 | . . . . . . . . . . . . . . . . 10 . 1 . 7 . 12 . 12 . Times Spotted 396 | . 16 10 . 2 10 1 21 . 31 3 15 . 6 1 25 21 36 3 32 17 20 36 37 51 2 Peak Tracking Total 13 | . 3 3 . 2 6 1 3 . 9 1 6 . 2 . 4 7 4 3 5 4 4 10 5 13 1 Tactical Retreats 33 | . . . . . 1 . 1 . 7 . . . . . 1 4 10 . 2 . 1 1 . 5 . Traps | -11 -10 -10 -10 -9 -8 -8 -8 -7 -7 -7 -7 -6 -6 -6 -6 -5 -5 -4 -4 -3 -3 -3 -3 -2 -2 ------- Run | Scr Mat Min Exi Min Mat Gar Mat Fac Gar Fac Gar Fac Was Fac Gar Fac Gar Fac Gar Res Gar Res Gar Res Gar Traps Triggered 31 | . 2 . . . . 1 . . 6 . 5 1 . . 1 3 . 3 1 . 5 1 . . 2 Indirectly . | . . . . . . . . . . . . . . . . . . . . . . . . . . Trap Hack Attempts 64 | . . . . . . . . . . . 50 . . . . . 12 . 2 . . . . . . Triggered . | . . . . . . . . . . . . . . . . . . . . . . . . . . Disarmed . | . . . . . . . . . . . . . . . . . . . . . . . . . . Reprogrammed 1 | . . . . . . . . . . . 1 . . . . . . . . . . . . . . Reused . | . . . . . . . . . . . . . . . . . . . . . . . . . . Traps Extracted . | . . . . . . . . . . . . . . . . . . . . . . . . . . Installed . | . . . . . . . . . . . . . . . . . . . . . . . . . . Triggered 3 | . . . . . . . . . . . . . . . . 3 . . . . . . . . . Exploded 1 | . . . 1 . . . . . . . . . . . . . . . . . . . . . . Machines | -11 -10 -10 -10 -9 -8 -8 -8 -7 -7 -7 -7 -6 -6 -6 -6 -5 -5 -4 -4 -3 -3 -3 -3 -2 -2 ---------- Run | Scr Mat Min Exi Min Mat Gar Mat Fac Gar Fac Gar Fac Was Fac Gar Fac Gar Fac Gar Res Gar Res Gar Res Gar Machines Disabled 47 | . . 1 . . 5 . . . 2 5 6 . . . 5 1 4 . 4 . 4 2 6 2 . Max in Single Turn 2 | . . 1 . . 2 . . . 1 . 2 . . . 1 1 1 . 1 . 1 1 1 1 . Garrison Access 3 | . . . . . . . . . . . . . . . . . . . . . . 1 . 2 . Garrison Relay 21 | . . . . . . . . . 2 . 2 . . . 3 . 2 . 4 . 3 . 5 . . Machines Sabotaged . | . . . . . . . . . . . . . . . . . . . . . . . . . . Garrisons Compromised . | . . . . . . . . . . . . . . . . . . . . . . . . . . Overloaded Fab Kills . | . . . . . . . . . . . . . . . . . . . . . . . . . . Hacking | -11 -10 -10 -10 -9 -8 -8 -8 -7 -7 -7 -7 -6 -6 -6 -6 -5 -5 -4 -4 -3 -3 -3 -3 -2 -2 --------- Run | Scr Mat Min Exi Min Mat Gar Mat Fac Gar Fac Gar Fac Was Fac Gar Fac Gar Fac Gar Res Gar Res Gar Res Gar Machines Accessed 33 | . 2 1 1 . 1 . 2 2 . 3 . . . 1 . 1 . 3 . 5 . 8 . 3 . Terminals 18 | . 2 1 . . . . 2 1 . 2 . . . . . . . 2 . 3 . 3 . 2 . Fabricators 4 | . . . . . . . . . . . . . . . . . . . . 1 . 3 . . . Repair Stations . | . . . . . . . . . . . . . . . . . . . . . . . . . . Recycling Units . | . . . . . . . . . . . . . . . . . . . . . . . . . . Scanalyzers . | . . . . . . . . . . . . . . . . . . . . . . . . . . Garrison Access 10 | . . . . . 1 . . 1 . 1 . . . 1 . 1 . 1 . 1 . 2 . 1 . Total Hacks 66 | . 8 2 1 . 1 . 5 6 . 8 . . . 1 . 1 . 7 . 12 . 10 . 4 . Successful 29 | . 3 . 1 . 1 . 1 4 . 5 . . . 1 . 1 . 2 . 5 . 4 . 1 . Failed 37 | . 5 2 . . . . 4 2 . 3 . . . . . . . 5 . 7 . 6 . 3 . Catastrophic 11 | . . 2 . . . . 1 . . . . . . . . . . 1 . 2 . 3 . 2 . Database Lockouts . | . . . . . . . . . . . . . . . . . . . . . . . . . . Manual 37 | . 4 . 1 . . . 5 4 . 5 . . . . . . . 5 . 7 . 3 . 3 . Terminals 49 | . 8 2 . . . . 5 5 . 7 . . . . . . . 6 . 9 . 4 . 3 . Fabricators 5 | . . . . . . . . . . . . . . . . . . . . 2 . 3 . . . Repair Stations . | . . . . . . . . . . . . . . . . . . . . . . . . . . Recycling Units . | . . . . . . . . . . . . . . . . . . . . . . . . . . Scanalyzers . | . . . . . . . . . . . . . . . . . . . . . . . . . . Garrison Access 11 | . . . . . 1 . . 1 . 1 . . . 1 . 1 . 1 . 1 . 3 . 1 . Terminal Hacks 8 | . 3 . 1 . . . . 1 . 1 . . . . . . . . . 1 . 1 . . . Record 2 | . . . . . . . . . . . . . . . . . . . . 1 . 1 . . . Part Schematic 1 | . . . . . . . . 1 . . . . . . . . . . . . . . . . . Robot Analysis 2 | . 2 . . . . . . . . . . . . . . . . . . . . . . . . Branch Access Points 1 | . 1 . . . . . . . . . . . . . . . . . . . . . . . . Locate Traps 1 | . . . . . . . . . . 1 . . . . . . . . . . . . . . . EX-Prototype ID Bank 1 | . . . 1 . . . . . . . . . . . . . . . . . . . . . . Fabricator Hacks . | . . . . . . . . . . . . . . . . . . . . . . . . . . Repair Station Hacks . | . . . . . . . . . . . . . . . . . . . . . . . . . . Recycling Unit Hacks . | . . . . . . . . . . . . . . . . . . . . . . . . . . Scanalyzer . | . . . . . . . . . . . . . . . . . . . . . . . . . . Garrison Access Hacks 11 | . . . . . 1 . . 1 . 1 . . . 1 . 1 . 1 . 1 . 3 . 1 . Unlock Access 9 | . . . . . 1 . . 1 . 1 . . . 1 . 1 . 1 . 1 . 1 . 1 . Seal Access 1 | . . . . . . . . . . . . . . . . . . . . . . 1 . . . Coupler Status 1 | . . . . . . . . . . . . . . . . . . . . . . 1 . . . Unauthorized Hacks 10 | . . . . . . . 1 2 . 3 . . . . . . . 1 . 3 . . . . . Terminals 10 | . . . . . . . 1 2 . 3 . . . . . . . 1 . 3 . . . . . Assimilate 1 | . . . . . . . . . . . . . . . . . . . . 1 . . . . . Botnet 5 | . . . . . . . . 1 . 2 . . . . . . . 1 . 1 . . . . . Operators 4 | . . . . . . . 1 1 . 1 . . . . . . . . . 1 . . . . . Fabricators . | . . . . . . . . . . . . . . . . . . . . . . . . . . Repair Stations . | . . . . . . . . . . . . . . . . . . . . . . . . . . Recycling Units . | . . . . . . . . . . . . . . . . . . . . . . . . . . Scanalyzers . | . . . . . . . . . . . . . . . . . . . . . . . . . . Garrison Access . | . . . . . . . . . . . . . . . . . . . . . . . . . . Data Cores Recovered . | . . . . . . . . . . . . . . . . . . . . . . . . . . Used . | . . . . . . . . . . . . . . . . . . . . . . . . . . Hacking Detections 28 | . 2 1 . . 1 . 2 1 . 3 . . . 1 . . . 3 . 4 . 8 . 2 . Full Trace Events 2 | . 1 . . . . . . . . . . . . . . . . . . . . . . 1 . Feedback Events . | . . . . . . . . . . . . . . . . . . . . . . . . . . Feedback Blocked . | . . . . . . . . . . . . . . . . . . . . . . . . . . Robot Schematics Acquired . | . . . . . . . . . . . . . . . . . . . . . . . . . . Robots Built . | . . . . . . . . . . . . . . . . . . . . . . . . . . Authchips . | . . . . . . . . . . . . . . . . . . . . . . . . . . Time . | . . . . . . . . . . . . . . . . . . . . . . . . . . Total Robot Build Rating . | . . . . . . . . . . . . . . . . . . . . . . . . . . Part Schematics Acquired 1 | . . . . . . . . 1 . . . . . . . . . . . . . . . . . Parts Built . | . . . . . . . . . . . . . . . . . . . . . . . . . . Authchips . | . . . . . . . . . . . . . . . . . . . . . . . . . . Time . | . . . . . . . . . . . . . . . . . . . . . . . . . . Total Part Build Rating . | . . . . . . . . . . . . . . . . . . . . . . . . . . Parts Repaired . | . . . . . . . . . . . . . . . . . . . . . . . . . . Time . | . . . . . . . . . . . . . . . . . . . . . . . . . . Parts Recycled . | . . . . . . . . . . . . . . . . . . . . . . . . . . Recycled Matter . | . . . . . . . . . . . . . . . . . . . . . . . . . . Retrieved Matter . | . . . . . . . . . . . . . . . . . . . . . . . . . . Retrieved Components . | . . . . . . . . . . . . . . . . . . . . . . . . . . Parts Scanalyzed . | . . . . . . . . . . . . . . . . . . . . . . . . . . Part Schematics Acquired . | . . . . . . . . . . . . . . . . . . . . . . . . . . Parts Damaged . | . . . . . . . . . . . . . . . . . . . . . . . . . . Bothacking | -11 -10 -10 -10 -9 -8 -8 -8 -7 -7 -7 -7 -6 -6 -6 -6 -5 -5 -4 -4 -3 -3 -3 -3 -2 -2 ------------ Run | Scr Mat Min Exi Min Mat Gar Mat Fac Gar Fac Gar Fac Was Fac Gar Fac Gar Fac Gar Res Gar Res Gar Res Gar Used RIF Installer 8 | . . . . . . 1 . . 1 . 1 . . . 1 . 1 . 1 . 1 . 1 . . Hotswap 1 | . . . . . . . . . . . . . . . . . . . . . . . 1 . . Command Fork 1 | . . . . . . . . . . . . . . . . . 1 . . . . . . . . Signal Jammer 1 | . . . . . . . . . . . . . . . 1 . . . . . . . . . . Zone Cloak 1 | . . . . . . . . . . . 1 . . . . . . . . . . . . . . Robot Detection 1 | . . . . . . . . . . . . . . . . . . . . . 1 . . . . Structural Interface 1 | . . . . . . . . . 1 . . . . . . . . . . . . . . . . Autoassimilate 1 | . . . . . . . . . . . . . . . . . . . 1 . . . . . . Robots Hacked 134 | . . . . . . . . . 2 6 5 1 6 1 3 8 10 2 10 14 14 12 25 13 2 Non-combat 31 | . . . . . . . . . . 5 . 1 . . . 6 . 2 . 5 . 6 . 6 . Combat 103 | . . . . . . . . . 2 1 5 . 6 1 3 2 10 . 10 9 14 6 25 7 2 Autoassimilated 17 | . . . . . . . . . . . . . . . . . . . . 3 5 . 5 3 1 Robot Hacks Applied 154 | . . . . . . . . . 2 10 5 3 6 1 3 12 11 5 10 15 9 23 20 18 1 parse_system 6 | . . . . . . . . . . 2 . . . . . . . 1 . 1 . 1 . 1 . no_distress 6 | . . . . . . . . . . . . 1 . . . 1 . . . 1 . 2 . 1 . ignore_repairs 1 | . . . . . . . . . . . . 1 . . . . . . . . . . . . . map_walls 8 | . . . . . . . . . . 1 . 1 . . . 2 . 1 . 2 . . . 1 . find_fabricator 2 | . . . . . . . . . . . . . . . . . . 1 . . . 1 . . . drop_inventory 6 | . . . . . . . . . . . . . . . . 1 . 1 . 2 . 1 . 1 . locate_stockpiles 1 | . . . . . . . . . . . . . . . . . . 1 . . . . . . . ignore_parts 4 | . . . . . . . . . . . . . . . . 1 . . . 1 . . . 2 . deconstruct_bot 1 | . . . . . . . . . . . . . . . . . . . . . . 1 . . . purge_threat 12 | . . . . . . . . . . 1 . . . . . 3 . . . . . 4 . 4 . locate_traps 1 | . . . . . . . . . . . . . . . . . . . . . . . . 1 . block_reporting 2 | . . . . . . . . . . 1 . . . . . . . . . 1 . . . . . map_route 2 | . . . . . . . . . . 1 . . . . . . . . . . . 1 . . . mark_security 1 | . . . . . . . . . . 1 . . . . . . . . . . . . . . . ignore_targets 6 | . . . . . . . . . . . . . 6 . . . . . . . . . . . . find_garrison 3 | . . . . . . . . . . . . . . . . . . . . 1 . 1 . 1 . wipe_record 2 | . . . . . . . . . . . . . . . . . 1 . . . 1 . . . . reboot_system 12 | . . . . . . . . . . . . . . . . . . . . 1 3 1 4 3 . overwrite_iff 38 | . . . . . . . . . . . . . . . 2 2 10 . 3 2 5 2 10 1 1 streamctrl_high 2 | . . . . . . . . . 1 . 1 . . . . . . . . . . . . . . formatsys_low 10 | . . . . . . . . . . 2 . . . . . 2 . . . . . 4 . 2 . formatsys_high 28 | . . . . . . . . . 1 1 4 . . 1 1 . . . 7 3 . 4 6 . . Relay Couplers Released 93 | . . . . . . . . . 9 . 7 . . . 11 . 8 . 14 . 10 8 22 4 . Machine Destruction 85 | . . . . . . . . . 9 . 7 . . . 11 . 8 . 14 . 10 . 22 4 . Programmers 8 | . . . . . . . . . . . . . . . . . . . . . . 8 . . . Attached 53 | . . . . . . . . . 2 3 3 1 . 1 3 3 3 1 4 3 5 7 7 6 1 Fabnet Peak Effective % . | . . . . . . . . . . . . . . . . . . . . . . . . . . Robots Rewired 20 | . . . . . . . . . 6 . . . . . 6 . . . . . . . 8 . . Allies Hacked 1 | . . . . . . . . . . . . . . . . . . . . . . 1 . . . Hacks Repelled . | . . . . . . . . . . . . . . . . . . . . . . . . . . Allies | -11 -10 -10 -10 -9 -8 -8 -8 -7 -7 -7 -7 -6 -6 -6 -6 -5 -5 -4 -4 -3 -3 -3 -3 -2 -2 -------- Run | Scr Mat Min Exi Min Mat Gar Mat Fac Gar Fac Gar Fac Was Fac Gar Fac Gar Fac Gar Res Gar Res Gar Res Gar Total Allies 122 | . . . . 1 . . . . 8 3 5 . . 1 9 4 9 . 13 8 13 10 29 7 2 Largest Group 12 | . . . . 1 1 . . . 6 3 4 . . 1 6 2 4 . 5 8 7 6 12 10 2 Highest-Rated Group 699 | . . . . 31 31 . . . 138 81 85 . . 32 188 33 57 . 239 415 351 415 699 605 116 Highest-Rated Ally 137 | . . . . 31 31 . . . 30 32 32 . . 32 32 29 30 . 58 64 64 137 116 89 58 Total Orders 27 | . . . . . . . . . 2 2 2 . . . 4 . 1 . . 1 2 6 2 5 . STAY 16 | . . . . . . . . . 2 1 2 . . . 2 . 1 . . 1 1 3 1 2 . FOLLOW 9 | . . . . . . . . . . 1 . . . . 2 . . . . . 1 2 1 2 . AID 2 | . . . . . . . . . . . . . . . . . . . . . . 1 . 1 . Ally Attacks 515 | . . . . . . . . . 24 1 5 . . . 47 6 33 . 24 47 87 37 122 80 2 Total Damage 16005 | . . . . . . . . . 230 221 115 . . . 1304 112 441 . 829 1730 2896 1670 3456 2927 74 Kills 93 | . . . . . . . . . 4 3 1 . . . 12 1 4 . 6 10 11 10 17 13 1 Allies Corrupted 1 | . . . . . . . . . . . . . . . . . . . . . . . . 1 . Allies Melted 1 | . . . . . . . . . . . . . . . . . . . . . . . 1 . . Intel | -11 -10 -10 -10 -9 -8 -8 -8 -7 -7 -7 -7 -6 -6 -6 -6 -5 -5 -4 -4 -3 -3 -3 -3 -2 -2 ------- Run | Scr Mat Min Exi Min Mat Gar Mat Fac Gar Fac Gar Fac Was Fac Gar Fac Gar Fac Gar Res Gar Res Gar Res Gar Robot Analysis Total 2 | . 2 . . . . . . . . . . . . . . . . . . . . . . . . Derelict Logs Recovered 1 | . . 1 . . . . . . . . . . . . . . . . . . . . . . . Drone Launches . | . . . . . . . . . . . . . . . . . . . . . . . . . . Drone Recoveries . | . . . . . . . . . . . . . . . . . . . . . . . . . . Exploration | -11 -10 -10 -10 -9 -8 -8 -8 -7 -7 -7 -7 -6 -6 -6 -6 -5 -5 -4 -4 -3 -3 -3 -3 -2 -2 ------------- Run | Scr Mat Min Exi Min Mat Gar Mat Fac Gar Fac Gar Fac Was Fac Gar Fac Gar Fac Gar Res Gar Res Gar Res Gar Turns Passed 20478 | . 341 944 237 167 268 114 1416 105 1491 573 823 128 1759 359 1379 840 1356 402 1835 626 1034 1539 1961 655 126 Spaces Moved 12189 | 1 123 707 293 109 162 141 1020 82 712 377 584 110 968 207 702 395 689 219 916 360 668 980 999 580 85 Core 606 | . . . . . 66 140 153 . . . . . . . . . . . . . . . . 172 75 Treads 5850 | . 108 176 . . . . 30 . 290 17 . . 870 207 702 395 689 219 873 . 14 74 999 187 . Legs 1297 | 1 15 . . . . 1 . . . . . . . . . . . . . . 364 906 . . 10 Wheels 4215 | . . 531 293 109 96 . 837 82 422 360 584 110 98 . . . . . 43 360 290 . . . . Hover . | . . . . . . . . . . . . . . . . . . . . . . . . . . Flight 221 | . . . . . . . . . . . . . . . . . . . . . . . . 221 . Fastest Speed 34 | 120 120 80 80 80 50 50 50 113 113 125 105 105 105 160 160 160 160 160 120 105 120 120 161 34 100 Average Speed 131 | 120 155 105 80 117 104 50 111 113 137 126 106 105 154 160 160 160 160 160 158 116 120 123 162 80 102 Slowest Speed 240 | 120 160 160 80 140 200 120 240 113 240 160 125 105 160 160 160 160 160 160 160 120 160 187 163 162 120 Overloaded Moves . | . . . . . . . . . . . . . . . . . . . . . . . . . . Propulsion Burnouts . | . . . . . . . . . . . . . . . . . . . . . . . . . . Robots Hopped 1 | . . . . . . . . . . . . . . . . . . . . . . . . 1 . Cave-ins Triggered . | . . . . . . . . . . . . . . . . . . . . . . . . . . Exploration Rate (%) 42 | 1 25 98 68 30 20 36 58 3 79 9 92 3 100 5 72 8 66 6 93 9 72 17 98 21 15 Regions Visited 25 Branch Regions 3 Pre-discovered Areas . | . . . . . . . . . . . . . . . . . . . . . . . . . . Known Exits Taken 10 | . 1 . . . 1 . . 1 . 1 . . . 1 . 1 . 1 . 1 . 1 . 1 . Unknown Exits Taken 5 | 1 . 1 1 1 . . 1 . . . . . . . . . . . . . . . . . . Scrap Searched 4 | . . 3 . 1 . . . . . . . . . . . . . . . . . . . . . Spaces Dug 101 | . . . . . 45 . 1 1 . . 35 . 12 . . . . 3 2 1 . 1 . . . Terrain Destroyed 553 | . . 2 . 14 138 . 1 1 . . 70 . 12 . 27 9 3 4 6 2 1 86 33 144 . Melee 24 | . . . . . 3 . 1 1 . . . . 12 . . . . 3 2 1 . 1 . . . Projectile 33 | . . 2 . . . . . . . . . . . . . 9 3 1 4 1 1 8 2 2 . AOE 496 | . . . . 14 135 . . . . . 70 . . . 27 . . . . . . 77 31 142 . Terrain Rammed . | . . . . . . . . . . . . . . . . . . . . . . . . . . Walls Destroyed . | . . . . . . . . . . . . . . . . . . . . . . . . . . Machines Disabled . | . . . . . . . . . . . . . . . . . . . . . . . . . . Actions | -11 -10 -10 -10 -9 -8 -8 -8 -7 -7 -7 -7 -6 -6 -6 -6 -5 -5 -4 -4 -3 -3 -3 -3 -2 -2 --------- Run | Scr Mat Min Exi Min Mat Gar Mat Fac Gar Fac Gar Fac Was Fac Gar Fac Gar Fac Gar Res Gar Res Gar Res Gar Total 15594 | . 192 821 295 143 223 180 1258 92 1158 471 759 122 1140 234 909 558 856 258 1210 552 843 1225 1258 714 123 Wait 1240 | . 7 15 . 23 17 24 135 . 256 60 27 . 42 3 71 81 35 2 131 132 61 58 49 11 . Move 12168 | . 122 706 292 108 161 140 1019 82 710 377 583 110 967 207 701 395 688 218 915 359 667 980 998 578 85 Hop 1 | . . . . . . . . . . . . . . . . . . . . . . . . 1 . Pick Up 165 | . 1 5 1 2 . 2 24 1 6 4 13 2 5 4 7 5 8 5 13 8 11 19 16 3 . Fast Attach 123 | . 5 5 . 1 2 1 12 1 2 3 2 . 5 4 2 5 1 5 9 7 15 15 12 6 3 Attach 120 | . . 5 . 1 4 1 6 3 12 4 5 3 . 2 3 7 6 1 9 2 6 13 10 15 2 Detach 22 | . 1 1 . . 1 . 3 . 2 . . 1 . . 2 2 . . 2 . . 4 . 3 . Swap 87 | . 2 . 1 1 4 . 9 2 3 3 8 1 . 3 6 3 7 2 1 2 3 14 9 3 . Drop 166 | . 1 3 1 2 1 . 11 2 4 4 2 . 16 8 7 3 6 6 14 10 15 17 22 11 . Fire 636 | . 49 78 . 5 27 1 . . 20 . 9 . . . 33 36 54 2 68 25 33 81 49 63 3 Melee 455 | . . . . . 6 . 39 1 44 13 16 5 105 2 17 15 39 17 37 5 22 24 37 11 . Ram 11 | . . 2 . . . . . . . . . . . . . . . . . . . . . 9 . Kick . | . . . . . . . . . . . . . . . . . . . . . . . . . . Crush 14 | . 4 1 . . . . . . 1 . . . . . 4 4 . . . . . . . . . Escape Stasis 105 | . . . . . . 11 . . 13 . 40 . . . . . . . 1 . 10 . . . 30 Rewire 217 | . . . . . . . . . 85 3 4 . . 1 56 2 . . 8 2 . . 56 . . Trap 64 | . . . . . . . . . . . 50 . . . . . 12 . 2 . . . . . . Miscellaneous . | . . . . . . . . . . . . . . . . . . . . . . . . . . Route ------- -11/Scrapyard -10/Materials -10/Mines (discovered 3 exits: [*Mat x2] / *Exi) -10/Exiles -9/Mines -8/Materials -8/Garrison -8/Materials (discovered 2 exits: *Fac x2) -7/Factory -7/Garrison (discovered 3 exits: *Fac x3) -7/Factory (discovered 2 exits: [Low] / Gar) -7/Garrison (discovered 3 exits: [*Fac x3]) -6/Factory -6/Waste -6/Factory -6/Garrison (discovered 2 exits: *Fac x2) -5/Factory (discovered 2 exits: *Fac / Gar) -5/Garrison (discovered 2 exits: *Fac x2) -4/Factory -4/Garrison (discovered 2 exits: *Res x2) -3/Research -3/Garrison (discovered 2 exits: *Res x2) -3/Research (discovered 2 exits: *Res / Gar) -3/Garrison (discovered 3 exits: *Res x3) -2/Research -2/Garrison History --------- Turn | Location | Event 1 | -11/Scrapyard | Discovered new exit (range 0) 1 | -11/Scrapyard | Entered Materials 7 | -10/Materials | Identified exit to Mines 206 | -10/Materials | Destroyed 8 combat bots 322 | -10/Materials | Build established: Mutant 342 | -10/Materials | Entered Mines 514 | -10/Mines | Discovered new exit (range 10) 675 | -10/Mines | Core integrity fell below 50% 702 | -10/Mines | Lost 3 parts (1p1n1w) 908 | -10/Mines | Found a damaged Exp. Sensor Array with a note attached 910 | -10/Mines | Found Prototype Device 910 | -10/Mines | Identified Exp. Sensor Array 1054 | -10/Mines | Lost 3 parts (1p2w) 1282 | -10/Mines | Deemed a non-threat by the Exiles lab entrance 1283 | -10/Mines | Discovered new exit (range 5) 1284 | -10/Mines | Discovered new exit (range 9) 1286 | -10/Mines | Entered Exiles 1306 | -10/Exiles | Met 8R-AWN 1319 | -10/Exiles | Met EX-HEX 1343 | -10/Exiles | Met EX-BIN 1383 | -10/Exiles | Aligned with FarCom system 1383 | -10/Exiles | Given EX-Vault access code 1403 | -10/Exiles | Opened EX-Vault 1425 | -10/Exiles | Found Longsword +1 1439 | -10/Exiles | Exiles lab attacked by MAIN.C 1514 | -10/Exiles | Discovered new exit (range 12) 1523 | -10/Exiles | Left Exiles lab with Longsword +1 1523 | -10/Exiles | Entered Mines 1556 | -9/Mines | Received a Rocket Launcher from a helpful Derelict 1592 | -9/Mines | Assembled infested the area 1597 | -9/Mines | Assisted by a Guerilla fighting off Assembled 1670 | -9/Mines | Discovered new exit (range 12) 1674 | -9/Mines | Received a Mining Laser from a helpful Derelict 1690 | -9/Mines | Entered Materials 1690 | -8/Materials | Accompanied by 1 ally 1690 | -8/Materials | Evolved 4 slots: Propulsion x2, Utility x2 1772 | -8/Materials | Garrison activated, responded to threat 1953 | -8/Materials | Lost 5 parts (2n1u2w) 1953 | -8/Materials | Identified exit to Garrison 1958 | -8/Materials | Entered Garrison 1988 | -8/Garrison | Triggered checkpoint 2000 | -8/Garrison | Triggered checkpoint 2029 | -8/Garrison | Discovered new exit (range 12) 2037 | -8/Garrison | Installed Relay Interface Framework 2072 | -8/Garrison | Entered Materials 2501 | -8/Materials | Discovered new exit (range 11) 2876 | -8/Materials | Discovered new exit (range 9) 3488 | -8/Materials | Entered Factory 3488 | -7/Factory | Evolved 2 slots: Propulsion x2 3593 | -7/Factory | Identified exit to Garrison 3593 | -7/Factory | Entered Garrison 3712 | -7/Garrison | Triggered checkpoint 3758 | -7/Garrison | Garrison Relay disabled 3889 | -7/Garrison | Build established: Scavenger-Mutant 4045 | -7/Garrison | Triggered checkpoint 4109 | -7/Garrison | Destroyed 8 combat bots 4270 | -7/Garrison | Discovered new exit (range 15) 4379 | -7/Garrison | Discovered new exit (range 9) 4428 | -7/Garrison | Triggered checkpoint 4462 | -7/Garrison | Triggered checkpoint 4465 | -7/Garrison | Triggered checkpoint 4539 | -7/Garrison | Lost 8 parts (1p5n1u1w) 4821 | -7/Garrison | Discovered new exit (range 13) 4850 | -7/Garrison | Expanded RIF knowledge: Structural Interface 4901 | -7/Garrison | Build established: Commander-Mutant 4910 | -7/Garrison | Triggered checkpoint 4920 | -7/Garrison | Garrison Relay disabled 5084 | -7/Garrison | Entered Factory 5244 | -7/Factory | Build established: Bothacker-Mutant 5595 | -7/Factory | Discovered new exit (range 46) 5657 | -7/Factory | Identified exit to Garrison 5657 | -7/Factory | Entered Garrison 5657 | -7/Garrison | Accompanied by 1 ally 5700 | -7/Garrison | Triggered checkpoint 5729 | -7/Garrison | Core integrity fell below 50% 5786 | -7/Garrison | Triggered checkpoint 5867 | -7/Garrison | Discovered new exit (range 14) 5936 | -7/Garrison | Garrison Relay disabled 5971 | -7/Garrison | Triggered checkpoint 6049 | -7/Garrison | Discovered new exit (range 5) 6078 | -7/Garrison | Triggered checkpoint 6249 | -7/Garrison | Discovered new exit (range 14) 6278 | -7/Garrison | Expanded RIF knowledge: Zone Cloak 6369 | -7/Garrison | Build established: Commander-Mutant 6446 | -7/Garrison | Garrison Relay disabled 6480 | -7/Garrison | Entered Factory 6480 | -6/Factory | Evolved 2 slots: Propulsion x2 6608 | -6/Factory | Sucked down chute 6608 | -6/Factory | Entered Waste 6626 | -6/Waste | Spotted C-40 Crusher 6637 | -6/Waste | Spotted C-40 Crusher 6660 | -6/Waste | Spotted C-40 Crusher 6674 | -6/Waste | Spotted C-40 Crusher 6707 | -6/Waste | Spotted C-40 Crusher 6737 | -6/Waste | Spotted C-40 Crusher 6744 | -6/Waste | Build established: Bothacker-Mutant 6822 | -6/Waste | Destroyed C-40 Crusher 6859 | -6/Waste | Destroyed C-40 Crusher 6874 | -6/Waste | Destroyed C-40 Crusher 6892 | -6/Waste | Destroyed C-40 Crusher 7117 | -6/Waste | Discovered new exit (range 16) 7250 | -6/Waste | Destroyed C-40 Crusher 7536 | -6/Waste | Destroyed C-40 Crusher 8367 | -6/Waste | Entered Factory 8726 | -6/Factory | Identified exit to Garrison 8726 | -6/Factory | Entered Garrison 8726 | -6/Garrison | Accompanied by 1 ally 8734 | -6/Garrison | Expanded RIF knowledge: Signal Jamming 8787 | -6/Garrison | Triggered checkpoint 8802 | -6/Garrison | Garrison Relay disabled 9186 | -6/Garrison | Triggered checkpoint 9249 | -6/Garrison | Triggered checkpoint 9286 | -6/Garrison | Triggered checkpoint 9428 | -6/Garrison | Discovered new exit (range 10) 9444 | -6/Garrison | Triggered checkpoint 9562 | -6/Garrison | Triggered checkpoint 9759 | -6/Garrison | Discovered new exit (range 8) 9761 | -6/Garrison | Destroyed 9 combat bots 9806 | -6/Garrison | Garrison Relay disabled 9909 | -6/Garrison | Garrison Relay disabled 10105 | -6/Garrison | Entered Factory 10105 | -5/Factory | Evolved 2 slots: Propulsion x2 10126 | -5/Factory | Build established: Botlord-Mutant 10308 | -5/Factory | Discovered new exit (range 12) 10405 | -5/Factory | First assault squad dispatched 10945 | -5/Factory | Identified exit to Garrison 10945 | -5/Factory | Entered Garrison 10945 | -5/Garrison | Accompanied by 2 allies 10986 | -5/Garrison | Build established: Bothacker-Mutant 11044 | -5/Garrison | Triggered checkpoint 11133 | -5/Garrison | Garrison Relay disabled 11390 | -5/Garrison | Triggered checkpoint 11440 | -5/Garrison | Triggered checkpoint 11445 | -5/Garrison | Triggered checkpoint 11520 | -5/Garrison | Discovered new exit (range 15) 11555 | -5/Garrison | Expanded RIF knowledge: Command Fork 11616 | -5/Garrison | Triggered checkpoint 11834 | -5/Garrison | Triggered checkpoint 11895 | -5/Garrison | Discovered new exit (range 7) 12078 | -5/Garrison | Garrison Relay disabled 12301 | -5/Garrison | Entered Factory 12301 | -4/Factory | Evolved 2 slots: Power x1, Weapon x1 12494 | -4/Factory | Build established: Botlord-Mutant 12564 | -4/Factory | Identified exit to Garrison 12703 | -4/Factory | Entered Garrison 12790 | -4/Garrison | Triggered checkpoint 12893 | -4/Garrison | Garrison Relay disabled 13016 | -4/Garrison | Spotted B-86 Titan 13024 | -4/Garrison | Triggered checkpoint 13199 | -4/Garrison | Destroyed B-86 Titan 13266 | -4/Garrison | Triggered checkpoint 13382 | -4/Garrison | Discovered new exit (range 10) 13646 | -4/Garrison | Triggered checkpoint 13755 | -4/Garrison | Discovered new exit (range 14) 13787 | -4/Garrison | Expanded RIF knowledge: Autoassimilate 13856 | -4/Garrison | Triggered checkpoint 14105 | -4/Garrison | Garrison Relay disabled 14126 | -4/Garrison | Triggered checkpoint 14266 | -4/Garrison | Garrison Relay disabled 14428 | -4/Garrison | Triggered checkpoint 14476 | -4/Garrison | Garrison Relay disabled 14538 | -4/Garrison | Entered Research 14538 | -3/Research | Accompanied by 5 allies 14538 | -3/Research | Evolved 2 slots: Propulsion x2 14576 | -3/Research | Found Gamma Bomb Array 14735 | -3/Research | Found Prototype Processor 14735 | -3/Research | Identified Exp. Targeting Computer 15128 | -3/Research | Identified exit to Garrison 15164 | -3/Research | Entered Garrison 15164 | -3/Garrison | Accompanied by 3 allies 15170 | -3/Garrison | Expanded RIF knowledge: Robot Detection 15226 | -3/Garrison | Triggered checkpoint 15301 | -3/Garrison | Garrison Relay disabled 15360 | -3/Garrison | Spotted B-86 Titan 15380 | -3/Garrison | Triggered checkpoint 15391 | -3/Garrison | Allies destroyed B-86 Titan 15392 | -3/Garrison | Triggered checkpoint 15406 | -3/Garrison | Triggered checkpoint 15562 | -3/Garrison | Triggered checkpoint 15676 | -3/Garrison | Garrison Relay disabled 15704 | -3/Garrison | Triggered checkpoint 15763 | -3/Garrison | Discovered new exit (range 8) 15927 | -3/Garrison | Discovered new exit (range 10) 16044 | -3/Garrison | Garrison Relay disabled 16198 | -3/Garrison | Entered Research 17026 | -3/Research | P-80 Master assimilated allied Machinist 8a 17027 | -3/Research | P-80 Master assimilated allied Director 8a 17321 | -3/Research | Discovered new exit (range 6) 17394 | -3/Research | Found Prototype Processor 17403 | -3/Research | Found Fusion Bomb Launcher 17529 | -3/Research | Spotted Executioner 17530 | -3/Research | Cargo convoy interrupted 17565 | -3/Research | Destroyed Executioner 17591 | -3/Research | Found Prototype Launcher 17591 | -3/Research | Identified Hellfire Missile Launcher 17595 | -3/Research | Found Prototype Reactor 17595 | -3/Research | Identified Vortex Chain Reactor 17598 | -3/Research | Found Vortex Chain Reactor 17600 | -3/Research | Lost 11 parts (2p7n1u1w) 17737 | -3/Research | Identified exit to Garrison 17737 | -3/Research | Entered Garrison 17737 | -3/Garrison | Accompanied by 1 ally 17808 | -3/Garrison | Triggered checkpoint 17845 | -3/Garrison | Garrison Relay disabled 17901 | -3/Garrison | Spotted B-86 Titan 17905 | -3/Garrison | Triggered checkpoint 17928 | -3/Garrison | Triggered checkpoint 18016 | -3/Garrison | Triggered checkpoint 18038 | -3/Garrison | Triggered checkpoint 18064 | -3/Garrison | Garrison Relay disabled 18144 | -3/Garrison | Discovered new exit (range 10) 18270 | -3/Garrison | Triggered checkpoint 18296 | -3/Garrison | Triggered checkpoint 18317 | -3/Garrison | Discovered new exit (range 10) 18320 | -3/Garrison | Triggered checkpoint 18344 | -3/Garrison | Expanded RIF knowledge: Hotswap 18682 | -3/Garrison | Garrison Relay disabled 18769 | -3/Garrison | Garrison Relay disabled 18911 | -3/Garrison | Spotted B-86 Titan 19043 | -3/Garrison | Allies destroyed B-86 Titan 19149 | -3/Garrison | Identified Spectral Analyzer 19520 | -3/Garrison | Triggered checkpoint 19551 | -3/Garrison | Garrison Relay disabled 19585 | -3/Garrison | Discovered new exit (range 10) 19698 | -3/Garrison | Entered Research 19698 | -2/Research | Accompanied by 10 allies 19698 | -2/Research | Evolved 2 slots: Propulsion x1, Weapon x1 19791 | -2/Research | Garrison activated, responded to threat 19948 | -2/Research | First assault squad dispatched 20079 | -2/Research | Lost 3 parts (2n1w) 20122 | -2/Research | Lost 3 parts (1p2w) 20207 | -2/Research | Lost 15 parts (1p12n2w) 20293 | -2/Research | Core integrity fell below 50% 20293 | -2/Research | Spotted B-90 Cyclops 20323 | -2/Research | Lost 3 parts (2n1u) 20333 | -2/Research | Spotted B-90 Cyclops 20339 | -2/Research | Core integrity fell below 20% 20350 | -2/Research | Spotted B-90 Cyclops 20353 | -2/Research | Identified exit to Garrison 20353 | -2/Research | Entered Garrison 20479 | -2/Garrison | Destroyed by G-73 Enforcer with Phase Gun Last Messages --------------- 20449_ Field strength at 22. 20450_ Field strength at 16. 20451_ Field strength at 10. Garrison Door activated. 20452_ Field strength at 4. 20453_ RIF automatically installing new Enforcer 9c system data, ETC: 6. 20453_ Stasis field depleted. 20453_ Jacked G-73 Enforcer... >>overwrite_iff Rewriting IFF filter. 20455_ Enforcer 9c suffers critical hit (Burn). 20458_ Enforcer 9c destroyed. 20459_ G-73 Enforcer destroyed. 20461_ Acquired Myomer Leg. 20464_ Network quickbooting G-73 Enforcer, ETC: 8. 20464_ Acquired Myomer Leg. 20467_ Acquired Hvy. Laser. 20472_ G-73 Enforcer reactivates. 20474_ Critical hit (Burn: +37). 20478_ System corrupted: Matter fused (-1). Map ----- +----------------------------------------------------+ | ?????????????????????????????????????????????????? | | ?????????????????????????????????????????????????? | | ?????????????????????????????????????????????????? | | ?????????????????????????????????????????????????? | | ?????????????????????????????????????????????????? | | ?????????????????????????????????????????????????? | | ?????????????????????????????????????????????????? | | ?????????????????????????????????????????????????? | | ?????????????????????????????????????????????????? | | ?????????????????????????????????????????????????? | | ?????????????????????????????????????????????????? | | ?????????????????????????????????????????????????? | | ?????????????????????????????????????????????????? | | ?????????????????????????????????????????????????? | | ?????????????????????????????????????????????????? | | ?????????????????????????????????????????????????? | | ?????????????????????????????????????????????????? | | ?????????????????????????????????????????????????? | | ?????????????????????????????????????????????????? | | ?????????????????????????????????????????????????? | | ?????????????????????????????????????????????????? | | ?????????????????????????????????????????????????? | | ??????????????#####??#######?????????????????????? | | ??????????????#[=%#??#"""""#?????????????????????? | | ??????????#####* %##### ##???????????Y?????????? | | ??????????# ! g ^ @ #?????????????????????? | | ??????????# ! ^ #?????????????????????? | | ??????????# ############++#?????????????????????? | | ??????????# #??????????# #?????????????????????? | | ??????????# #??????????# #?????????????????????? | | ########### ############++#######???????????????? | | #???????????????? | | #???????????????? | | #???????????????? | | ############+#############+### #???????????????? | | ???????????# #???????????# #?? #???????????????? | | ???????????# #???????????# #??? #???????????????? | | ???????????# #???????????# #???? #???????????????? | | ???????????# ############# #?????#???????????????? | | ???????????# #????????C????????????? | | ???????????############### #?????????????????????? | | ?????????????????????????# #?????????????????????? | | ?????????????????????????# ?????????????????????? | | ?????????????????????????####????????????????????? | | ?????????????????????????????????????????????????? | | ?????????????????????????????????????????????????? | | ?????????????????????????????????????????????????? | | ????????????????????????????g????????????????????? | | ?????????????????????????????????????????????????? | | ?????????????????????????????????????????????????? | +----------------------------------------------------+ Best States ------------- Heat Dissipation 93 Coolant Potential 100 Energy Generation 55 Energy Capacity 700 Matter Stores 300 Matter Capacity 300 Sight Range 20 Robot Scan Range 20 Terrain Scan Range 14 Terrain Scan Density 10 Armor Coverage 600 Evasion (%) 63 Melee Accuracy 11 Recoil Reduction 13 Particle Charging 25 Salvage Targeting 1 Offensive Hacking 20 Defensive Hacking 10 Relay Coupler Types 3 Relay Coupler Value 83 Authchip Count 1 Item Schematics ----------------- Imp. Hacking Suite | -7/Factory | Hacked Robot Schematics ------------------ None Fabricated ------------ Nothing Alien Tech Used ----------------- None Achievements -------------- None Challenges ------------ None Game ------ Seed CompactCoilRefractor Manual? 0 Play Time 04:17:10 Cumulative 162.9 hours Start 2022.05.24 @ 15:53:14 End 2022.05.25 @ 14:43:06 Sessions 5 Manual Loads 0 Difficulty Rogue Special Mode None Game No. 244 Rogue 244 Adventurer 0 Explorer 0 Win Type - Total 9 Types 7/0/1/1/0/0/0/0/0 Lore% 50 Gallery% 74 Achievement% 62 Wizard Run 0 Options --------- ASCII 0 Keyboard 0 Movement Numpad Keybinds 0 Fullscreen 1 Font 18/Terminus Map View 76x50 Tactical HUD 1 Map Filters NONE Filters NONE Steam 1 RUN: dfecc8ad-f4ea-46c9-bbfc-a702f32f1c24